bitfinex/quotes_ETHUSD_20240820
["timestamp","ask_amount","ask_price","bid_price","bid_amount"]
[1724143017459,3.75223,2665.1,2664.6,0.55]
[1724143017954,3.75234,2665.1,2664.6,0.55]
[1724143018249,3.75231,2665.1,2664.6,0.55]
[1724143018403,3.75211,2665.2,2664.6,0.55]
[1724143018816,3.75227,2665.1,2664.6,0.55]
[1724143019961,3.75211,2665.2,2664.6,0.55]
[1724143019962,3.75235,2665.0,2664.6,0.55]
[1724143020120,7.5048,2665.0,2664.6,0.55]
[1724143020325,3.75286,2664.7,2664.5,2.2906]
[1724143020544,3.75259,2664.9,2664.5,2.2906]
[1724143020883,3.75254,2664.9,2664.4,4.066]
[1724143021048,3.75254,2664.9,2664.5,1.1328371]
[1724143021813,3.75234,2665.0,2664.5,1.1328371]
[1724143022463,3.75257,2664.9,2664.5,1.1328371]
[1724143022642,3.75263,2664.8,2664.4,4.066]
[1724143022954,3.75263,2664.8,2664.3,7.262371]
[1724143022955,3.75319,2664.4,2664.3,7.262371]
[1724143023914,3.75361,2664.1,2663.8,7.262371]
[1724143024109,7.50735,2664.1,2663.5,2.4669]
[1724143024554,3.75361,2664.1,2663.5,2.4669]
[1724143025257,4.433919,2664.4,2663.6,1.583]
[1724143025258,3.75319,2664.4,2663.6,1.583]
[1724143025426,3.75319,2664.4,2663.7,2.3716]
[1724143025754,3.75319,2664.4,2663.7,2.76706]
[1724143025909,3.75335,2664.3,2663.7,2.76706]
[1724143029909,3.75309,2664.5,2663.7,2.76706]
[1724143030110,3.75309,2664.5,2663.8,1.583]
[1724143030463,3.75309,2664.5,2663.9,2.855806]
[1724143030629,3.75291,2664.6,2663.9,2.93087153]
[1724143030963,3.75291,2664.6,2663.9,2.855806]
[1724143031162,3.75306,2664.5,2663.9,2.855806]
[1724143031611,3.75331,2664.4,2663.9,2.855806]
[1724143032312,3.75331,2664.4,2663.9,2.4208]
[1724143032551,3.75333,2664.3,2663.8,0.55]
[1724143034356,3.8811,2664.4,2663.4,7.262371]
[1724143034357,3.75387,2664.0,2663.4,11.333671]
[1724143034542,3.75391,2663.9,2663.4,11.78230033]
[1724143034967,3.75377,2664.0,2663.4,11.78230033]
[1724143035183,3.75365,2664.1,2663.4,11.78230033]
[1724143035454,3.75365,2664.1,2663.6,1.583]
[1724143035761,3.75361,2664.2,2663.7,2.3858]
[1724143036416,3.75365,2664.1,2663.7,2.3858]
[1724143038856,7.50683,2664.3,2663.7,2.3858]
[1724143039156,3.75349,2664.2,2663.7,2.3858]
[1724143039360,3.75349,2664.2,2663.7,2.87562]
[1724143041104,7.50705,2664.2,2663.7,2.87562]
[1724143041312,3.75349,2664.2,2663.7,2.87562]
[1724143041622,7.50705,2664.2,2663.7,2.87562]
[1724143041796,3.75349,2664.2,2663.7,2.87562]
[1724143045788,3.75334,2664.3,2663.8,0.538802]
[1724143049308,3.75334,2664.3,2663.7,2.3858]
[1724143049489,7.50678,2664.3,2663.8,0.55]
[1724143049689,3.75334,2664.3,2663.8,0.55]
[1724143050019,7.50676,2664.3,2663.8,0.55]
[1724143051135,3.75354,2664.2,2663.8,0.55]
[1724143053038,3.75334,2664.3,2663.8,0.55]
[1724143053188,3.75315,2664.5,2663.8,0.55]
[1724143053189,7.50632,2664.5,2663.8,1.09482]
[1724143053390,3.75319,2664.4,2663.9,2.277]
[1724143054108,3.75333,2664.3,2663.9,2.277]
[1724143056937,3.75333,2664.3,2663.8,1.09482]
[1724143057148,3.75333,2664.3,2663.9,0.342912]
[1724143057447,7.50675,2664.3,2663.8,1.09482]
[1724143057596,3.75333,2664.3,2663.8,1.09482]
[1724143057802,7.50673,2664.3,2663.8,1.09482]
[1724143058101,3.75333,2664.3,2663.8,1.09482]
[1724143059926,3.75319,2664.4,2663.8,1.09482]
[1724143060155,3.75319,2664.4,2663.9,0.342912]
[1724143060627,3.75319,2664.4,2664.0,2.4393]
[1724143061963,7.50633,2664.5,2664.0,2.4393]
[1724143062125,3.75315,2664.5,2664.0,2.4393]
[1724143062746,3.75312,2664.5,2664.0,2.4393]
[1724143063131,3.75319,2664.4,2664.0,2.4393]
[1724143063339,3.75319,2664.4,2664.0,2.951012]
[1724143065471,3.75287,2664.7,2664.2,1.583]
[1724143065672,3.75287,2664.7,2664.3,2.3943]
[1724143065673,7.50574,2664.7,2664.3,2.3943]
[1724143065880,7.50572,2664.7,2664.3,2.3943]
[1724143066057,3.75286,2664.7,2664.3,2.3943]
[1724143066266,3.75284,2664.7,2664.3,2.3943]
[1724143066872,7.50571,2664.7,2664.3,2.3943]
[1724143067182,3.75298,2664.6,2664.3,2.3943]
[1724143067777,3.75298,2664.6,2664.0,5.92635983]
[1724143067982,3.75298,2664.6,2664.1,0.99655175]
[1724143068592,3.75284,2664.7,2664.1,0.99655175]
[1724143069254,7.50569,2664.7,2664.2,1.3048627]
[1724143069458,3.75284,2664.7,2664.1,0.99655175]
[1724143069658,7.50569,2664.7,2664.2,0.57477546]
[1724143069841,3.75284,2664.7,2664.3,2.2928]
[1724143073665,6.2,2664.9,2664.3,2.2928]
[1724143073666,3.7526,2664.9,2664.3,2.2928]
[1724143073865,3.7526,2664.9,2664.4,0.44505755]
[1724143074085,3.7526,2664.9,2664.4,2.02805755]
[1724143074742,7.50516,2664.9,2664.4,2.02805755]
[1724143075241,7.50514,2664.9,2664.4,2.02805755]
[1724143075441,7.50514,2664.9,2664.5,0.43959145]
[1724143075442,3.75256,2664.9,2664.5,0.43959145]
[1724143075957,7.50514,2664.9,2664.5,0.43959145]
[1724143076482,7.50512,2664.9,2664.5,0.43959145]
[1724143077803,7.50514,2664.9,2664.5,0.43959145]
[1724143078411,3.75264,2664.8,2664.5,0.43959145]
[1724143079395,9.8788,2665.1,2664.5,0.43959145]
[1724143079598,3.75241,2665.0,2664.6,2.341]
[1724143079922,3.75248,2664.9,2664.6,2.341]
[1724143080209,3.75227,2665.1,2664.6,2.341]
[1724143080210,3.75227,2665.1,2664.6,2.8218649]
[1724143080437,3.75333,2664.3,2664.1,0.41325583]
[1724143080576,3.75333,2664.3,2664.0,7.262371]
[1724143080775,1.583,2664.5,2664.0,8.06683839]
[1724143080776,3.7532,2664.4,2664.0,8.06683839]
[1724143081231,3.75333,2664.3,2664.0,8.06683839]
[1724143081805,3.75355,2664.2,2664.0,7.262371]
[1724143083752,7.50714,2664.2,2663.8,2.341]
[1724143083905,3.75355,2664.2,2663.8,2.341]
[1724143084642,7.50711,2664.2,2663.8,2.341]
[1724143084974,3.75355,2664.2,2663.8,2.341]
[1724143087320,3.75355,2664.2,2663.5,1.583]
[1724143087321,3.75355,2664.2,2663.6,2.4621]
[1724143087500,3.75361,2664.1,2663.7,0.95451]
[1724143087698,3.75355,2664.2,2663.7,0.95451]
[1724143094967,7.5071,2664.2,2663.7,0.95451]
[1724143095130,6.14965,2664.2,2663.7,0.40451]
[1724143095317,3.75375,2664.0,2663.6,2.4621]
[1724143096046,3.75366,2664.1,2663.6,2.4621]
[1724143096653,3.75376,2664.0,2663.6,2.4621]
[1724143097495,6.14965,2664.2,2663.6,2.4621]
[1724143097496,7.50711,2664.2,2663.6,4.0451]
[1724143097655,7.50711,2664.2,2663.7,0.60027657]
[1724143097993,6.017,2664.4,2663.8,1.583]
[1724143098290,9.77024,2664.4,2663.9,0.21832766]
[1724143098493,6.01697,2664.4,2663.9,0.21832766]
[1724143098855,3.75327,2664.4,2663.9,2.50462766]
[1724143100098,3.75305,2664.5,2663.9,2.50462766]
[1724143100301,6.7524,2665.0,2664.0,0.95876277]
[1724143100302,7.50565,2664.7,2664.0,0.95876277]
[1724143100551,3.75301,2664.6,2664.0,0.95876277]
[1724143101203,3.75319,2664.4,2664.0,0.55]
[1724143101402,3.75319,2664.4,2663.9,0.55]
[1724143102742,6.10236,2664.5,2663.9,0.55]
[1724143104325,3.75306,2664.5,2663.9,0.55]
[1724143104526,3.75301,2664.6,2664.0,0.2801]
[1724143104730,3.75301,2664.6,2663.9,0.55]
[1724143104731,3.75264,2664.8,2664.1,4.5475]
[1724143104953,7.50534,2664.8,2664.2,0.55]
[1724143105127,3.9033,2664.9,2664.1,2.4145]
[1724143105128,1.583,2664.7,2664.1,2.4145]
[1724143105473,3.75313,2664.5,2664.1,2.4145]
[1724143106863,3.75319,2664.4,2664.0,19.75]
[1724143107822,3.75299,2664.6,2664.0,19.75]
[1724143108022,3.75299,2664.6,2664.0,22.11796]
[1724143108266,3.75305,2664.5,2664.0,22.11796]
[1724143108979,0.32623177,2667.7,2664.0,22.11796]
[1724143108980,6.16262,2665.2,2664.4,2.4878]
[1724143109268,3.75247,2665.0,2664.4,2.4878]
[1724143110166,1.583,2665.1,2664.5,0.07505469]
[1724143110466,1.583,2665.1,2664.5,0.41458547]
[1724143110675,5.33523,2665.1,2664.5,0.41458547]
[1724143111634,9.08752,2665.1,2664.5,0.41458547]
[1724143112235,5.33523,2665.1,2664.5,0.41458547]
[1724143112446,9.08752,2665.1,2664.5,0.41458547]
[1724143112647,5.33523,2665.1,2664.5,0.41458547]
[1724143112852,5.33523,2665.1,2664.6,0.29023855]
[1724143113182,5.33523,2665.1,2664.7,2.2864]
[1724143113944,3.75223,2665.1,2664.7,2.2864]
[1724143117176,7.504,2665.3,2664.7,2.2864]
[1724143117961,5.335,2665.3,2664.7,2.2864]
[1724143118162,9.087,2665.3,2664.7,2.71479855]
[1724143118941,5.335,2665.3,2664.7,2.71479855]
[1724143119355,9.08701,2665.3,2664.7,2.71479855]
[1724143119984,3.75211,2665.2,2664.7,2.71479855]
[1724143128399,3.7518,2665.4,2664.7,4.29779855]
[1724143128609,3.7518,2665.4,2664.9,2.3471]
[1724143128768,3.75206,2665.2,2664.9,2.3471]
[1724143130986,3.75206,2665.2,2664.6,2.4418]
[1724143131180,3.75206,2665.2,2664.7,0.55]
[1724143132472,3.75194,2665.3,2664.7,0.55]
[1724143132799,3.75194,2665.3,2664.7,1.00748]
[1724143133360,3.7516,2665.6,2665.0,2.3023]
[1724143133710,3.75164,2665.5,2665.0,2.3023]
[1724143133920,3.75164,2665.5,2664.8,2.3213]
[1724143133921,3.75207,2665.2,2664.8,2.3213]
[1724143134283,2.3004,2665.0,2664.1,2.3429]
[1724143134581,3.75292,2664.6,2664.2,0.42999594]
[1724143134799,3.75292,2664.6,2664.1,2.3429]
[1724143135013,3.75307,2664.5,2664.1,2.3429]
[1724143136786,7.50593,2664.6,2664.1,2.3429]
[1724143136982,3.050993,2664.6,2664.1,2.3429]
[1724143137216,3.050993,2664.6,2663.6,3.3761]
[1724143137217,3.75357,2664.2,2663.7,2.3429]
[1724143138598,1.583,2664.3,2663.7,2.3429]
[1724143138969,3.75335,2664.3,2663.7,3.9259]
[1724143139517,3.75327,2664.4,2663.7,3.9259]
[1724143140173,7.50659,2664.4,2663.7,3.9259]
[1724143140379,7.50659,2664.4,2663.7,4.31849]
[1724143140683,3.75333,2664.3,2663.7,4.31849]
[1724143144784,3.75319,2664.4,2663.7,4.31849]
[1724143145183,3.75319,2664.4,2663.7,1.97559]
[1724143145530,3.75319,2664.4,2663.8,2.624359]
[1724143145934,3.75298,2664.6,2663.9,1.583]
[1724143146226,3.75286,2664.7,2664.0,2.3254]
[1724143146796,3.75293,2664.6,2664.0,2.3254]
[1724143146997,3.75293,2664.6,2664.0,2.7359959]
[1724143148512,3.9687,2664.8,2664.0,2.7359959]
[1724143148830,7.50541,2664.8,2664.2,2.4862]
[1724143149231,9.08841,2664.8,2664.2,2.4862]
[1724143149931,5.33566,2664.8,2664.2,2.4862]
[1724143150083,5.33566,2664.8,2664.2,2.83087959]
[1724143150287,3.75266,2664.8,2664.2,2.83087959]
[1724143150843,3.75249,2664.9,2664.2,2.9059402]
[1724143151003,3.75249,2664.9,2664.3,2.93929402]
[1724143153222,3.75263,2664.8,2664.3,2.93929402]
[1724143153627,3.75249,2664.9,2664.3,2.93929402]
[1724143154210,7.50505,2664.9,2664.3,2.93929402]
[1724143154412,3.75249,2664.9,2664.3,2.93929402]
[1724143154599,1.583,2665.0,2664.5,2.3646]
[1724143155154,3.75227,2665.1,2664.5,2.3646]
[1724143155946,5.33542,2665.0,2664.5,2.3646]
[1724143156098,3.75249,2664.9,2664.5,2.3646]
[1724143157815,3.75227,2665.1,2664.5,2.3646]
[1724143158059,3.75202,2665.3,2664.5,2.8097494]
[1724143158228,3.75208,2665.2,2664.5,2.8097494]
[1724143158412,3.75208,2665.2,2664.6,1.583]
[1724143158614,12.0867,2665.4,2664.6,1.583]
[1724143158915,3.75194,2665.3,2664.7,2.65801494]
[1724143159818,3.75178,2665.4,2664.7,2.65801494]
[1724143160223,2.4984,2665.7,2665.0,1.583]
[1724143160224,6.24977,2665.7,2665.0,1.583]
[1724143160372,6.24977,2665.7,2665.1,0.38848]
[1724143160674,3.75151,2665.6,2665.1,0.38848]
[1724143162161,7.50311,2665.6,2665.1,0.38848]
[1724143162363,3.75151,2665.6,2665.1,0.38848]
[1724143162734,7.50308,2665.6,2665.1,0.38848]
[1724143163332,3.75151,2665.6,2665.1,0.38848]
[1724143163982,7.50311,2665.6,2665.1,0.38848]
[1724143164892,3.75151,2665.6,2665.1,0.38848]
[1724143167096,3.75151,2665.6,2665.2,2.4491]
[1724143170761,3.75166,2665.5,2665.2,2.4491]
[1724143171283,3.75151,2665.6,2665.2,2.4491]
[1724143171731,3.75164,2665.5,2665.2,2.4491]
[1724143176357,4.3397111,2665.5,2665.2,2.4491]
[1724143176980,3.75164,2665.5,2665.2,2.4491]
[1724143177342,3.75214,2665.2,2664.9,19.75]
[1724143177558,3.75227,2665.1,2664.9,19.75]
[1724143177855,3.75206,2665.2,2664.5,9.537971]
[1724143177856,3.75279,2664.7,2664.5,9.537971]
[1724143178049,3.75279,2664.7,2664.5,2.2756]
[1724143178680,3.75306,2664.5,2664.2,2.3816]
[1724143178884,3.75279,2664.7,2664.2,2.3816]
[1724143179392,7.50564,2664.7,2664.2,2.3816]
[1724143179539,3.75334,2664.3,2663.5,2.3816]
[1724143180040,3.75334,2664.3,2663.6,2.3816]
[1724143180354,7.50628,2664.5,2663.7,2.3816]
[1724143180690,3.75311,2664.5,2663.9,2.4762]
[1724143180982,3.75287,2664.7,2663.9,2.4762]
[1724143181953,3.75287,2664.7,2664.0,2.9092]
[1724143182479,7.50577,2664.7,2664.1,1.584]
[1724143182810,7.50577,2664.7,2664.2,2.2912]
[1724143182811,3.75287,2664.7,2664.2,2.2912]
[1724143183303,3.75291,2664.6,2664.2,2.2912]
[1724143185073,3.75291,2664.6,2664.2,2.73372]
[1724143187408,3.75291,2664.6,2664.2,2.2912]
[1724143188381,7.50594,2664.6,2664.2,2.2912]
[1724143188580,3.75291,2664.6,2664.2,2.2912]
[1724143189302,7.50595,2664.6,2664.2,2.2912]
[1724143190213,3.75291,2664.6,2664.2,2.2912]
[1724143190456,7.50592,2664.6,2664.2,2.2912]
[1724143190639,3.75291,2664.6,2664.2,2.2912]
[1724143193362,3.75291,2664.6,2664.2,2.73372]
[1724143194032,3.75277,2664.7,2664.2,2.73372]
[1724143195164,7.50545,2664.8,2664.2,2.73372]
[1724143195552,3.75248,2664.9,2664.4,2.3549]
[1724143196359,3.75249,2664.9,2664.4,2.3549]
[1724143198329,3.75263,2664.8,2664.4,2.3549]
[1724143198565,7.50599,2664.6,2664.1,4.0727]
[1724143198776,8.256599,2664.6,2664.1,4.0727]
[1724143198941,7.50599,2664.6,2664.1,4.0727]
[1724143199137,3.75331,2664.4,2664.1,2.4887]
[1724143200148,3.75306,2664.5,2664.1,2.4887]
[1724143201425,3.75277,2664.7,2664.1,4.0727]
[1724143201641,3.75277,2664.7,2664.3,2.4665]
[1724143203882,3.75264,2664.8,2664.3,2.4665]
[1724143204862,7.50491,2665.0,2664.3,2.4665]
[1724143205061,3.75245,2665.0,2664.3,4.0505]
[1724143205384,3.75245,2665.0,2664.3,4.496277]
[1724143205942,3.75251,2664.9,2664.3,4.496277]
[1724143207196,3.75263,2664.8,2664.3,2.912277]
[1724143207495,3.75263,2664.8,2664.3,2.4665]
[1724143208246,3.75248,2664.9,2664.3,2.4665]
[1724143209989,4.0551,2665.1,2664.5,1.584]
[1724143209990,3.75221,2665.1,2664.5,1.584]
[1724143210200,3.75221,2665.1,2664.6,2.3134]
[1724143211297,3.75221,2665.1,2664.6,2.70314]
[1724143212105,3.75198,2665.3,2664.8,2.2774]
[1724143212252,3.75206,2665.2,2664.8,2.2774]
[1724143213367,3.75206,2665.2,2664.8,2.702514]
[1724143213578,4.34018807,2665.2,2664.8,2.702514]
[1724143214302,4.34018807,2665.2,2664.8,2.2774]
[1724143214957,8.09233807,2665.2,2664.8,2.2774]
[1724143215698,8.09232807,2665.2,2664.8,2.2774]
[1724143216195,4.34018807,2665.2,2664.8,2.2774]
[1724143219094,0.58812807,2665.2,2665.0,2.3078]
[1724143219297,6.75159,2665.6,2665.1,0.38918]
[1724143219298,6.75158,2665.6,2665.1,0.38918]
[1724143219501,6.75158,2665.6,2665.0,2.3078]
[1724143219862,10.50316,2665.6,2665.0,2.3078]
[1724143220661,10.50317,2665.6,2665.0,2.3078]
[1724143221281,10.50316,2665.6,2665.0,2.3078]
[1724143221894,3.75167,2665.5,2665.0,2.3078]
[1724143224799,3.75102,2666.0,2664.7,7.262371]
[1724143224800,3.75086,2666.1,2665.5,2.3375]
[1724143225114,2.2902,2666.5,2665.1,20.13918]
[1724143225115,3.75062,2666.3,2665.8,2.3375]
[1724143225286,3.75081,2666.1,2665.9,0.39215]
[1724143225485,3.75081,2666.1,2665.8,2.3375]
[1724143225998,3.75062,2666.3,2665.8,2.3375]
[1724143225999,3.75066,2666.2,2665.8,2.3375]
[1724143227705,7.50143,2666.2,2665.8,2.3375]
[1724143228027,3.75136,2665.7,2665.5,2.3587]
[1724143228323,3.75136,2665.7,2665.3,9.621071]
[1724143228684,3.75136,2665.7,2665.3,2.3587]
[1724143229421,3.75186,2665.4,2665.2,19.75]
[1724143229587,3.75186,2665.4,2665.1,2.4316]
[1724143230096,3.75164,2665.5,2665.1,2.4316]
[1724143235292,3.7515,2665.6,2665.1,2.4316]
[1724143237315,3.75166,2665.5,2665.1,2.4316]
[1724143237830,3.75136,2665.7,2665.1,2.4316]
[1724143238332,3.75156,2665.6,2665.1,2.4316]
[1724143238504,3.75156,2665.6,2665.1,5.3759971]
[1724143245152,3.75136,2665.7,2665.1,5.3759971]
[1724143246218,3.75131,2665.8,2665.2,2.4868]
[1724143246451,3.75108,2665.9,2665.4,1.582]
[1724143246685,7.50225,2665.9,2665.5,2.4868]
[1724143247262,3.75108,2665.9,2665.5,2.4868]
[1724143247622,7.50224,2665.9,2665.5,2.4868]
[1724143247950,3.75108,2665.9,2665.5,2.4868]
[1724143249346,7.50179,2666.1,2665.5,2.89368]
[1724143249649,7.50179,2666.1,2665.6,1.582]
[1724143249650,3.75087,2666.1,2665.6,1.582]
[1724143250022,7.50176,2666.1,2665.6,1.582]
[1724143250908,3.75087,2666.1,2665.6,1.582]
[1724143251196,2.4904,2666.4,2665.3,7.638171]
[1724143251197,3.75175,2665.5,2665.3,7.262371]
[1724143251356,2.4897,2665.6,2664.9,19.75]
[1724143251357,2.4897,2665.6,2665.1,2.4936]
[1724143251558,6.2413,2665.6,2665.1,2.4936]
[1724143251806,6.2413,2665.6,2664.9,8.844371]
[1724143251807,3.75166,2665.5,2664.9,8.844371]
[1724143251955,3.75189,2665.4,2664.9,7.262371]
[1724143252160,3.75195,2665.3,2664.9,7.262371]
[1724143252411,3.75195,2665.3,2664.8,2.4936]
[1724143253893,3.75166,2665.5,2665.0,1.582]
[1724143254518,3.75166,2665.5,2664.8,2.4936]
[1724143254886,3.75143,2665.7,2664.9,0.55]
[1724143255092,3.75143,2665.7,2664.7,19.75]
[1724143255093,3.75143,2665.7,2665.0,2.3826]
[1724143256421,3.75151,2665.6,2665.0,2.3826]
[1724143257583,3.75143,2665.7,2665.0,2.3826]
[1724143259027,6.16879,2665.9,2665.0,2.3826]
[1724143259184,6.16879,2665.9,2665.1,0.55]
[1724143259379,6.16879,2665.9,2665.2,0.29326]
[1724143261090,3.75109,2665.9,2665.3,2.3529]
[1724143262085,7.50225,2665.9,2665.3,2.3529]
[1724143262327,3.75109,2665.9,2665.3,2.3529]
[1724143263184,6.75088,2666.1,2665.3,2.3529]
[1724143263527,3.75115,2665.9,2665.3,2.3529]
[1724143266290,10.5018,2666.1,2665.3,2.3529]
[1724143266499,6.75088,2666.1,2665.3,2.3529]
[1724143266832,3.75108,2665.9,2665.3,2.3529]
[1724143267239,6.75088,2666.1,2665.3,2.3529]
[1724143267240,10.50181,2666.1,2665.3,2.3529]
[1724143267528,10.50181,2666.1,2665.5,2.3843]
[1724143267529,3.75097,2666.0,2665.5,2.3843]
[1724143268031,3.75088,2666.1,2665.5,2.3843]
[1724143268392,3.75066,2666.2,2665.5,2.3843]
[1724143272790,3.7508,2666.1,2665.5,2.3843]
[1724143273139,3.7508,2666.1,2665.6,0.23843]
[1724143274497,2.4355,2666.2,2665.2,10.70978847]
[1724143274498,3.75143,2665.7,2665.2,7.555631]
[1724143274732,3.75143,2665.7,2665.3,2.4544]
[1724143275031,3.75161,2665.6,2665.3,2.4544]
[1724143276304,3.75143,2665.7,2665.3,2.4544]
[1724143276519,3.75096,2666.0,2665.3,2.4544]
[1724143276520,3.75122,2665.8,2665.3,2.4544]
[1724143276744,3.75122,2665.8,2665.3,5.4010771]
[1724143276938,7.50255,2665.8,2665.3,5.4010771]
[1724143277362,3.7514,2665.7,2665.3,5.4010771]
[1724143278646,3.75101,2666.0,2665.4,2.3561]
[1724143278952,2.4662,2666.2,2665.4,3.61261481]
[1724143278953,3.75109,2665.9,2665.4,3.61261481]
[1724143280114,3.75083,2666.1,2665.4,3.61261481]
[1724143280754,7.50171,2666.1,2665.4,3.61261481]
[1724143281745,3.75083,2666.1,2665.4,3.61261481]
[1724143281948,3.75083,2666.1,2665.5,0.65592919]
[1724143282384,3.75146,2665.7,2665.2,9.666571]
[1724143282657,3.75192,2665.3,2665.0,2.4549]
[1724143282875,3.75192,2665.3,2665.1,0.24549]
[1724143283217,3.75192,2665.3,2665.0,2.4549]
[1724143283218,3.75174,2665.5,2665.0,2.4549]
[1724143283514,3.7518,2665.4,2665.0,2.4549]
[1724143284746,3.7514,2665.7,2665.0,2.4549]
[1724143284932,3.7514,2665.7,2665.1,0.24549]
[1724143285328,3.7514,2665.7,2665.2,2.2638]
[1724143285746,0.58804128,2665.6,2665.2,2.2638]
[1724143289146,0.58804128,2665.6,2665.3,0.55]
[1724143289335,0.58804128,2665.6,2665.4,2.3894]
[1724143291344,0.58804128,2665.6,2665.5,2.8383]
[1724143291551,0.58804128,2665.6,2665.5,3.3962476]
[1724143298456,3.75073,2666.2,2665.5,3.3962476]
[1724143298911,2.4258,2666.3,2665.5,2.2883]
[1724143298912,3.75081,2666.1,2665.5,2.2883]
[1724143299061,3.7511,2665.9,2665.5,2.2883]
[1724143299705,3.7511,2665.9,2665.2,7.262371]
[1724143299706,3.75135,2665.8,2665.2,9.514171]
[1724143299867,3.75142,2665.7,2665.2,9.514171]
[1724143300199,3.75106,2666.0,2665.3,2.482]
[1724143300507,3.75117,2665.9,2665.4,0.9744371]
[1724143300666,3.7519,2665.4,2665.2,7.262371]
[1724143300873,3.75192,2665.3,2665.2,7.262371]
[1724143301100,3.75192,2665.3,2664.8,2.3369]
[1724143302184,3.75171,2665.5,2664.8,2.3369]
[1724143302374,6.09071,2665.7,2665.0,2.2848]
[1724143303771,3.75161,2665.6,2665.0,2.2848]
[1724143305084,3.75164,2665.5,2665.0,2.2848]
[1724143305955,9.84216,2665.7,2665.0,2.536649]
[1724143306696,6.09071,2665.7,2665.0,2.536649]
[1724143307667,3.75152,2665.6,2665.0,2.536649]
[1724143308065,3.75165,2665.5,2665.0,2.536649]
[1724143311836,3.75211,2665.2,2664.8,2.3061]
[1724143312697,3.75211,2665.2,2664.7,27.012371]
[1724143313350,6.18989,2665.4,2664.7,27.012371]
[1724143313351,3.75256,2664.9,2664.7,27.012371]
[1724143314532,3.75262,2664.8,2664.7,27.012371]
[1724143314834,3.75262,2664.8,2664.4,2.4631]
[1724143323632,3.75262,2664.8,2664.2,7.638171]
[1724143323633,6.21122,2664.8,2664.2,9.977771]
[1724143323839,6.21122,2664.8,2664.2,11.47962325]
[1724143326090,2.4586,2664.8,2664.2,11.47962325]
[1724143328145,6.21122,2664.8,2664.2,11.47962325]
[1724143328587,2.4586,2664.8,2664.2,11.47962325]
[1724143328789,6.21135,2664.8,2664.2,11.47962325]
[1724143329028,6.21135,2664.8,2664.2,9.977771]
[1724143329211,6.21135,2664.8,2664.2,7.638171]
[1724143331291,3.75306,2664.5,2664.2,7.262371]
[1724143331605,2.392,2664.4,2664.2,7.262371]
[1724143335735,2.392,2664.4,2664.0,19.75]
[1724143335917,2.392,2664.4,2664.0,22.6777771]
[1724143336641,2.392,2664.4,2664.0,24.2617771]
[1724143337628,6.14519,2664.4,2664.0,24.2617771]
[1724143337837,2.392,2664.4,2664.0,24.2617771]
[1724143338204,2.392,2664.4,2664.0,21.334]
[1724143338746,6.14522,2664.4,2664.0,21.334]
[1724143339822,2.392,2664.4,2664.0,21.334]
[1724143340137,2.392,2664.4,2664.0,19.75]
[1724143341540,2.392,2664.4,2664.0,21.334]
[1724143341852,3.75306,2664.5,2664.0,3.9138]
[1724143342052,3.75306,2664.5,2664.0,5.0314171]
[1724143342738,7.50621,2664.5,2664.0,5.0314171]
[1724143342938,3.75319,2664.4,2664.0,2.7016171]
[1724143343168,3.75319,2664.4,2664.0,1.584]
[1724143343985,6.10839,2664.4,2664.0,1.584]
[1724143351058,6.04094,2664.6,2664.0,1.584]
[1724143351279,9.79394,2664.6,2664.0,1.584]
[1724143351483,9.79394,2664.6,2664.0,2.7136871]
[1724143351484,6.04094,2664.6,2664.0,2.7136871]
[1724143351653,3.75305,2664.5,2664.0,2.7136871]
[1724143357774,6.04094,2664.6,2664.0,2.7136871]
[1724143357979,9.85653,2664.8,2664.1,2.3087]
[1724143358198,3.75278,2664.7,2664.2,0.50223871]
[1724143358489,3.75278,2664.7,2664.1,2.3087]
[1724143358685,3.75291,2664.6,2664.1,2.3087]
[1724143358886,3.75291,2664.6,2664.0,2.7136871]
[1724143359086,3.75291,2664.6,2664.1,0.55]
[1724143359309,2.432,2664.5,2664.1,0.55]
[1724143359508,2.432,2664.5,2664.1,1.33623043]
[1724143362193,3.7532,2664.4,2664.0,2.7136871]
[1724143363135,3.7532,2664.4,2664.0,1.1296871]
[1724143363434,3.7532,2664.4,2663.8,8.846371]
[1724143363639,3.7532,2664.4,2663.9,0.55]
[1724143363858,7.50651,2664.4,2663.9,0.55]
[1724143364037,3.7532,2664.4,2663.9,0.55]
[1724143364939,7.5065,2664.4,2663.9,0.55]
[1724143365235,3.7532,2664.4,2663.9,0.55]
[1724143366090,7.50646,2664.4,2663.9,0.55]
[1724143366292,3.7532,2664.4,2663.9,0.55]
[1724143366706,3.7532,2664.4,2663.8,10.80391983]
[1724143366903,3.7532,2664.4,2663.9,4.71661882]
[1724143366904,7.50646,2664.4,2663.9,4.71661882]
[1724143367135,3.7532,2664.4,2663.9,3.41158779]
[1724143367332,7.50646,2664.4,2663.9,3.41158779]
[1724143367856,3.7532,2664.4,2663.8,8.846371]
[1724143368060,3.7532,2664.4,2663.9,1.30503655]
[1724143369150,3.7532,2664.4,2663.8,8.846371]
[1724143369353,2.4898,2664.1,2663.8,7.262371]
[1724143369727,2.3851,2664.3,2663.8,9.77411264]
[1724143369916,2.3851,2664.3,2663.9,1.584]
[1724143370509,2.3405,2664.6,2664.1,1.584]
[1724143370745,2.3405,2665.0,2664.5,1.584]
[1724143371009,2.3405,2665.0,2664.3,2.3909]
[1724143371010,2.3405,2665.0,2664.7,1.584]
[1724143371616,6.09284,2665.0,2664.5,1.584]